fUSD/lending_fUSD_20260428
["ID","MTS","AMOUNT","RATE_DAILY","PERIOD"]
[421297188,1777386644137,-1575.443768,0.000114,2]
[421297189,1777386644146,-44919.54149405,0.000114,2]
[421297190,1777386644155,-11800.0,0.000114,4]
[421297191,1777386644165,-352.78107556,0.00011404,2]
[421297192,1777386644175,-150.0,0.00011412,3]
[421297193,1777386644186,-3206.92164602,0.00011465,2]
[421297194,1777386644195,-200.14222073,0.000115,2]
[421297195,1777386644204,-2300.0,0.000115,4]
[421297196,1777386644214,-13196.12602888,0.00011548,2]
[421297197,1777386644229,-1936.113,0.00011548,2]
[421297198,1777386644283,-1475.86837013,0.00010303,2]
[421297204,1777386646182,-200.0,9.8e-05,2]
[421297205,1777386646192,-55.23656801,0.00010303,2]
[421297206,1777386646253,-2000.89506186,0.00010303,2]
[421297207,1777386646263,-12073.88531421,0.00011099,2]
[421297208,1777386646297,-1957.26381318,0.00011099,2]
[421297209,1777386646356,-2532.2341,0.00011099,2]
[421297239,1777387832082,-257.0,8.219e-05,2]
[421297240,1777387832093,-250.0,8.219e-05,2]
[421297241,1777387832103,-280.0,8.219e-05,2]
[421297242,1777387832112,-300.0,8.674e-05,2]
[421297243,1777387832122,-224.71379302,8.674e-05,2]
[421297244,1777387832132,-1200.0,9.038e-05,2]
[421297245,1777387832141,-1200.0,9.039e-05,2]
[421297246,1777387832151,-150.0,9.04e-05,2]
[421297247,1777387832160,-300.0,9.04e-05,2]
[421297248,1777387832170,-300.0,9.04e-05,2]
[421297249,1777387832179,-300.0,9.04e-05,2]
[421297250,1777387832189,-1513.56441645,9.041e-05,2]
[421297251,1777387832198,-5000.0,9.041e-05,2]
[421297252,1777387832209,-250.0,9.041e-05,2]
[421297253,1777387832218,-250.0,9.041e-05,2]
[421297254,1777387832229,-4850.28801436,9.041e-05,2]
[421297255,1777387832238,-578.20924308,9.285e-05,2]
[421297256,1777387832248,-1428.38747117,9.285e-05,2]
[421297257,1777387832257,-721.12765535,9.285e-05,2]
[421297258,1777387832267,-151.0,9.285e-05,2]
[421297259,1777387832276,-151.0,9.285e-05,2]
[421297260,1777387832289,-174.61919141,9.285e-05,2]
[421297261,1777387832298,-156.53338377,9.34e-05,2]
[421297262,1777387832308,-150.99,9.34e-05,2]
[421297263,1777387832317,-9999.99,9.541e-05,2]
[421297264,1777387832327,-2396.738,9.543e-05,2]
[421297265,1777387832337,-156.394,9.543e-05,2]
[421297266,1777387832346,-500.0,9.828e-05,2]
[421297267,1777387832356,-500.0,9.828e-05,2]
[421297268,1777387832366,-500.0,9.828e-05,2]
[421297269,1777387832375,-500.0,9.828e-05,2]
[421297270,1777387832384,-500.0,9.828e-05,2]
[421297271,1777387832395,-500.0,9.828e-05,2]
[421297272,1777387832404,-500.0,9.828e-05,2]
[421297273,1777387832414,-500.0,9.828e-05,2]
[421297274,1777387832423,-500.0,9.828e-05,2]
[421297275,1777387832433,-500.0,9.828e-05,2]
[421297276,1777387832443,-500.0,9.828e-05,2]
[421297277,1777387832453,-500.0,9.828e-05,2]
[421297278,1777387832463,-500.0,9.828e-05,2]
[421297280,1777387832472,-500.0,9.828e-05,2]
[421297281,1777387832482,-447.58842795,9.828e-05,2]
[421297283,1777387832491,-500.0,9.828e-05,2]
[421297285,1777387832501,-500.0,9.828e-05,2]
[421297286,1777387832510,-258.642693,9.828e-05,2]
[421297287,1777387832519,-500.0,9.828e-05,2]
[421297288,1777387832529,-500.0,9.828e-05,2]
[421297289,1777387832539,-500.0,9.828e-05,2]
[421297290,1777387832548,-500.0,9.828e-05,2]
[421297291,1777387832558,-500.0,9.828e-05,2]
[421297292,1777387832567,-500.0,9.828e-05,2]
[421297293,1777387832577,-151.53031816,9.828e-05,2]
[421297294,1777387832586,-500.0,9.828e-05,2]
[421297295,1777387832596,-500.0,9.828e-05,2]
[421297296,1777387832605,-217.42189229,9.828e-05,2]
[421297297,1777387832614,-1481.23780761,9.833e-05,2]
[421297298,1777387832624,-156.587,9.833e-05,2]
[421297299,1777387832633,-181.08010149,9.833e-05,2]
[421297300,1777387832643,-1680.0,9.942e-05,2]
[421297301,1777387832652,-439.0,9.943e-05,2]
[421297302,1777387832662,-255.0,9.944e-05,2]
[421297303,1777387832671,-420.0,9.944e-05,2]
[421297304,1777387832680,-300.0,9.944e-05,2]
[421297305,1777387832690,-300.0,9.944e-05,2]
[421297306,1777387832699,-200.0,0.0001,2]
[421297307,1777387832709,-500.0,0.0001,2]
[421297308,1777387832718,-151.0,0.0001,2]
[421297309,1777387832728,-500.0,0.0001,2]
[421297310,1777387832750,-151.0,0.0001,2]
[421297311,1777387832761,-500.0,0.0001,2]
[421297312,1777387832771,-500.0,0.0001,3]
[421297313,1777387832780,-151.0,0.0001,2]
[421297314,1777387832790,-578.65158662,0.0001,2]
[421297315,1777387832800,-151.0,0.0001,2]
[421297316,1777387832810,-151.0,0.0001,2]
[421297317,1777387832819,-151.0,0.0001,2]
[421297318,1777387832829,-151.0,0.0001,2]
[421297319,1777387832839,-151.0,0.0001,2]
[421297320,1777387832848,-151.0,0.0001,2]
[421297321,1777387832858,-151.0,0.0001,2]
[421297322,1777387832867,-151.0,0.0001,2]
[421297323,1777387832876,-317.94,0.00010096,2]
[421297324,1777387832886,-163.23110827,0.00010102,2]
[421297325,1777387832896,-500.0,0.00010102,2]
[421297326,1777387832905,-500.0,0.00010102,2]
[421297327,1777387832915,-500.0,0.00010102,2]
[421297328,1777387832925,-646.58336526,0.00010102,2]
[421297329,1777387832935,-500.0,0.00010102,2]
[421297330,1777387832945,-500.0,0.00010102,2]
[421297331,1777387832955,-500.0,0.00010102,2]
[421297332,1777387832965,-500.0,0.00010102,2]
[421297333,1777387832975,-500.0,0.00010102,2]
[421297334,1777387832985,-500.0,0.00010102,2]
[421297335,1777387832994,-465.08436233,0.00010102,2]
[421297336,1777387833004,-6786.3412,0.00010277,2]
[421297337,1777387833014,-17970.2306,0.00010277,2]
[421297338,1777387833024,-2500.0,0.00010277,2]
[421297339,1777387833034,-5000.0,0.00010277,2]
[421297340,1777387833044,-977.70167363,0.00010281,2]
[421297341,1777387833053,-167.67255337,0.00010376,2]
[421297342,1777387833063,-500.0,0.00010376,2]
[421297343,1777387833073,-500.0,0.00010376,2]
[421297344,1777387833083,-500.0,0.00010376,2]
[421297345,1777387833092,-500.0,0.00010376,2]
[421297346,1777387833102,-461.57295154,0.00010376,2]
[421297347,1777387833113,-500.0,0.00010376,2]
[421297348,1777387833123,-500.0,0.00010376,2]
[421297349,1777387833133,-215.20990315,0.00010376,2]
[421297350,1777387833143,-150.13999468,0.00010376,2]
[421297351,1777387833152,-500.0,0.00010376,2]
[421297352,1777387833162,-500.0,0.00010376,2]
[421297353,1777387833171,-500.0,0.00010376,2]
[421297354,1777387833181,-500.0,0.00010376,2]
[421297355,1777387833191,-500.0,0.00010376,2]
[421297356,1777387833200,-376.92180964,0.00010376,2]
[421297357,1777387833210,-250.0,0.00010376,2]
[421297358,1777387833219,-126303.52559532,0.00010377,2]
[421297359,1777387833235,-4092.3575,0.00010377,2]
[421297360,1777387833247,-1187.70732287,0.00010377,2]
[421297361,1777387833259,-2113.39286538,0.00010377,2]
[421297371,1777387838376,-378.825,0.00010277,2]
[421297372,1777387838481,-1515.32,0.00010277,2]
[421297373,1777387838493,-605.855,0.00010277,2]
[421297374,1777387838503,-26.91635,0.00010377,2]
[421297385,1777387840793,-638.57351897,0.00010377,2]
[421297386,1777387840804,-318.13193537,0.00010377,2]
[421297387,1777387840848,-6772.3904093,0.00010377,2]
[421297401,1777387843321,-385.3934042,0.00010377,2]
[421297405,1777387843799,-0.01220415,0.00010377,2]
[421297406,1777387843818,-11109.70210062,0.00010377,2]
[421297409,1777387846313,-912.0,0.00010377,2]
[421297410,1777387846420,-11163.37474682,0.00010377,2]
[421297413,1777387847226,-4982.10791836,0.00010377,2]
[421297554,1777389032289,-257.0,8.219e-05,2]
[421297555,1777389032299,-45.39359109,8.219e-05,2]
[421297556,1777389032342,-173.60640891,8.219e-05,2]
[421297557,1777389032351,-280.0,8.219e-05,2]
[421297558,1777389032360,-150.0,8.84e-05,2]
[421297559,1777389032370,-300.0,8.84e-05,2]
[421297560,1777389032379,-1200.0,8.84e-05,2]
[421297561,1777389032388,-66548.87224941,8.841e-05,2]
[421297562,1777389032400,-304993.46929135,8.841e-05,2]
[421297563,1777389032411,-1254.41808677,8.841e-05,2]
[421297564,1777389032423,-741.54979015,8.841e-05,2]
[421297565,1777389032434,-376.72087718,8.841e-05,2]
[421297579,1777389038369,-397.6179226,8.84e-05,2]
[421297580,1777389038633,-102.3820774,8.84e-05,2]
[421297581,1777389038642,-500.0,8.84e-05,2]
[421297582,1777389038652,-188.13014303,8.84e-05,2]
[421297583,1777389038661,-500.0,8.84e-05,2]
[421297584,1777389038670,-500.0,8.84e-05,2]
[421297585,1777389038679,-425.73181021,8.84e-05,2]
[421297586,1777389038689,-500.0,8.84e-05,2]
[421297587,1777389038698,-500.0,8.84e-05,2]
[421297588,1777389038708,-500.0,8.84e-05,2]
[421297589,1777389038717,-500.0,8.84e-05,2]
[421297590,1777389038727,-500.0,8.84e-05,2]
[421297591,1777389038736,-500.0,8.84e-05,2]
[421297592,1777389038745,-500.0,8.84e-05,2]
[421297593,1777389038754,-500.0,8.84e-05,2]
[421297594,1777389038764,-500.0,8.84e-05,2]
[421297595,1777389038773,-500.0,8.84e-05,2]
[421297596,1777389038783,-500.0,8.84e-05,2]
[421297597,1777389038792,-500.0,8.84e-05,2]
[421297598,1777389038806,-500.0,8.84e-05,2]
[421297599,1777389038816,-500.0,8.84e-05,2]
[421297600,1777389038826,-500.0,8.84e-05,2]
[421297601,1777389038836,-500.0,8.84e-05,2]
[421297602,1777389038846,-500.0,8.84e-05,2]
[421297603,1777389038855,-500.0,8.84e-05,2]
[421297604,1777389038864,-500.0,8.84e-05,2]
[421297605,1777389038874,-500.0,8.84e-05,2]
[421297606,1777389038884,-322453.37820514,8.841e-05,2]
[421297607,1777389038894,-250.0,9.041e-05,2]
[421297608,1777389038903,-578.20924308,9.678e-05,2]
[421297609,1777389038912,-260.43395098,9.678e-05,2]
[421297610,1777389038922,-174.61919141,9.678e-05,2]
[421297611,1777389038932,-255.0,9.724e-05,2]
[421297612,1777389038942,-420.0,9.724e-05,2]
[421297613,1777389038951,-1680.0,9.724e-05,2]
[421297614,1777389038960,-371.0,9.737e-05,2]
[421297615,1777389038970,-1805.0,9.741e-05,2]
[421297616,1777389038979,-3272.15,9.741e-05,2]
[421297617,1777389038988,-474.0,9.761e-05,2]
[421297618,1777389038998,-272.52,9.809e-05,2]
[421297619,1777389039008,-912.0,9.896e-05,2]
[421297620,1777389039018,-2000.0,9.902e-05,2]
[421297621,1777389039028,-26145.5122,9.902e-05,2]
[421297622,1777389039040,-2500.0,9.902e-05,2]
[421297623,1777389039050,-719.75657286,9.947e-05,2]
[421297624,1777389039059,-721.12765535,9.996e-05,2]
[421297625,1777389039069,-1428.38747117,9.996e-05,2]
[421297626,1777389039078,-200.0,0.0001,2]
[421297627,1777389039088,-151.0,0.0001,2]
[421297628,1777389039097,-151.0,0.0001,2]
[421297629,1777389039107,-151.0,0.0001,2]
[421297630,1777389039117,-151.0,0.0001,2]
[421297631,1777389039127,-151.0,0.0001,2]
[421297632,1777389039136,-151.0,0.0001,2]
[421297633,1777389039146,-151.0,0.0001,2]
[421297634,1777389039156,-226.71480827,0.0001,2]
[421297635,1777389039165,-2089.92,0.00010021,2]
[421297636,1777389039175,-1000.0,0.000101,2]
[421297637,1777389039185,-1000.0,0.000101,3]
[421297638,1777389039195,-1000.0,0.000101,4]
[421297639,1777389039204,-181.08010149,0.00010226,2]
[421297640,1777389039214,-250.0,0.0001025,2]
[421297641,1777389039224,-5378.0794593,0.00010354,2]
[421297642,1777389039234,-500.0,0.00010377,2]
[421297643,1777389039243,-164.0,0.00010377,3]
[421297644,1777389039253,-155.0,0.00010377,3]
[421297645,1777389039263,-637.733,0.00010477,2]
[421297646,1777389039276,-1350.0,0.00010477,2]
[421297647,1777389039286,-3532.0,0.00010477,2]
[421297648,1777389039295,-1266.0,0.00010477,2]
[421297649,1777389039304,-927.0,0.00010477,2]
[421297650,1777389039314,-1220.0,0.00010477,2]
[421297651,1777389039324,-6035.0,0.00010477,2]
[421297652,1777389039334,-3782.0,0.00010477,2]
[421297653,1777389039344,-313.0,0.000105,2]
[421297654,1777389039353,-681.0,0.000105,2]
[421297655,1777389039363,-307.0,0.000105,2]
[421297656,1777389039372,-500.0,0.00010543,2]
[421297657,1777389039382,-500.0,0.00010543,2]
[421297658,1777389039392,-500.0,0.00010543,2]
[421297659,1777389039402,-500.0,0.00010543,2]
[421297660,1777389039412,-500.0,0.00010543,2]
[421297661,1777389039422,-500.0,0.00010543,2]
[421297662,1777389039431,-500.0,0.00010543,2]
[421297663,1777389039440,-216.12589678,0.00010543,2]
[421297664,1777389039450,-1481.23780761,0.00010544,2]
[421297665,1777389039460,-200.0,0.00010548,2]
[421297666,1777389039470,-1917.39,0.00010593,2]
[421297667,1777389039480,-156.395,0.00010593,2]
[421297668,1777389039489,-433.0,0.00010696,2]
[421297669,1777389039499,-587.0,0.00010696,2]
[421297670,1777389039512,-2351.0,0.00010696,2]
[421297671,1777389039522,-187.78006525,0.00010774,2]
[421297672,1777389039532,-502.43166806,0.00010959,2]
[421297673,1777389039542,-3150.0,0.00010959,2]
[421297674,1777389039552,-154.62877006,0.00010999,2]
[421297675,1777389039562,-651.80111574,0.00010999,2]
[421297676,1777389039571,-608.08,0.00011,2]
[421297677,1777389039582,-400.0,0.00011,4]
[421297678,1777389039591,-155.0,0.00011023,3]
[421297679,1777389039601,-171.09,0.00011045,2]
[421297680,1777389039612,-500.0,0.00011073,2]
[421297681,1777389039622,-183.42372431,0.00011073,2]
[421297682,1777389039631,-500.0,0.00011073,2]
[421297683,1777389039641,-1536.04360649,0.00011092,2]
[421297684,1777389039651,-201.69812677,0.00011096,2]
[421297685,1777389039661,-500.0,0.00011098,2]
[421297686,1777389039671,-305.09799627,0.00011098,2]
[421297687,1777389039682,-500.0,0.00011098,2]
[421297688,1777389039693,-176.06404724,0.00011098,2]
[421297689,1777389040034,-500.0,0.00011098,2]
[421297690,1777389040044,-173.10106608,0.00011098,2]
[421297691,1777389040053,-500.0,0.00011098,2]
[421297692,1777389040062,-200.64693221,0.00011098,2]
[421297693,1777389040072,-150.00000009,0.00011098,2]
[421297694,1777389040081,-250.0,0.00011099,2]
[421297695,1777389040092,-2159.0,0.00011099,5]
[421297696,1777389040100,-1733.0,0.00011099,5]
[421297697,1777389040110,-34036.96856518,0.00011099,2]
[421297698,1777389040119,-34036.96856511,0.00011099,2]
[421297699,1777389040129,-30276.90563122,0.00011099,2]
[421297700,1777389040144,-3760.06293389,0.00011099,2]
[421297701,1777389040153,-6844.35605389,0.00011099,2]
[421297702,1777389040831,-902.03364174,0.00011099,2]
[421297703,1777389040992,-4748.06441226,0.00011099,2]
[421297727,1777389043713,-418.1,0.00010437,2]
[421297728,1777389043724,-1000.0,0.000105,2]
[421297729,1777389043735,-9828.83834229,0.00011099,2]
[421297732,1777389046640,-6838.90092772,0.00011099,2]
[421297733,1777389047061,-385.86598933,0.00011099,2]
[421297734,1777389047074,-439.41047523,0.00011099,2]
[421297735,1777389047115,-3803.34,0.00011099,2]
[421297736,1777389047225,-246.15872265,0.00011099,2]
[421297737,1777389047235,-673.35876619,0.00011099,2]
[421297738,1777389047329,-16944.57218305,0.00011099,2]
[421297745,1777390231537,-280.0,8.219e-05,2]
[421297746,1777390231549,-610.0,8.63e-05,2]
[421297747,1777390231561,-1121.0,9.04e-05,2]
[421297748,1777390231573,-1200.0,9.04e-05,2]
[421297749,1777390231584,-300.0,9.04e-05,2]
[421297750,1777390231595,-300.0,9.041e-05,2]
[421297751,1777390231607,-5000.0,9.041e-05,2]
[421297752,1777390231619,-500.0,9.041e-05,2]
[421297753,1777390231629,-300.0,9.493e-05,2]
[421297754,1777390231640,-199.84,9.664e-05,2]
[421297755,1777390231652,-1680.0,9.944e-05,2]
[421297756,1777390231663,-300.0,9.944e-05,2]
[421297757,1777390231674,-578.20924308,9.98e-05,2]
[421297758,1777390231685,-44994.3545,0.0001,2]
[421297759,1777390231696,-491.59,0.00010021,2]
[421297760,1777390231708,-150.0,0.00010021,2]
[421297761,1777390231719,-174.61919141,0.00010094,2]
[421297762,1777390231730,-25000.0,0.000101,2]
[421297763,1777390231741,-500.0,0.00010274,2]
[421297764,1777390231752,-150.0,0.00010436,2]
[421297765,1777390231763,-1266.0,0.00010437,2]
[421297766,1777390231774,-927.0,0.00010437,2]
[421297767,1777390231785,-1220.0,0.00010437,2]
[421297768,1777390231795,-623.0,0.00010437,2]
[421297770,1777390231807,-1049.0,0.00010437,2]
[421297772,1777390231818,-222.0,0.00010437,2]
[421297776,1777390231841,-2900.59,0.00010475,2]
[421297778,1777390231855,-3055.94,0.00010475,2]
[421297781,1777390231868,-9999.99,0.00010475,2]
[421297782,1777390231880,-299.99,0.00010475,2]
[421297783,1777390231892,-369.0,0.00010529,2]
[421297785,1777390231905,-369.0,0.00010544,2]
[421297786,1777390231918,-369.0,0.00010554,2]
[421297787,1777390231930,-369.0,0.00010563,2]
[421297788,1777390231943,-369.0,0.00010568,2]
[421297789,1777390231955,-369.0,0.00010571,2]
[421297790,1777390231968,-369.0,0.00010581,2]
[421297791,1777390231980,-369.0,0.00010592,2]
[421297792,1777390231991,-369.0,0.00010594,2]
[421297793,1777390232003,-369.0,0.0001063,2]
[421297794,1777390232016,-369.0,0.00010636,2]
[421297795,1777390232027,-369.0,0.00010636,2]
[421297796,1777390232039,-369.0,0.00010638,2]
[421297797,1777390232051,-369.0,0.0001064,2]
[421297798,1777390232062,-244.72051294,0.00010642,2]
[421297799,1777390232075,-369.0,0.00010644,2]
[421297800,1777390232086,-369.0,0.00010644,2]
[421297801,1777390232097,-369.0,0.00010651,2]
[421297802,1777390232109,-369.0,0.00010655,2]
[421297803,1777390232120,-369.0,0.00010668,2]
[421297804,1777390232131,-369.0,0.0001067,2]
[421297805,1777390232143,-369.0,0.00010672,2]
[421297806,1777390232154,-1533.912,0.00010673,2]
[421297807,1777390232165,-156.395,0.00010673,2]
[421297808,1777390232177,-369.0,0.00010674,2]
[421297809,1777390232188,-369.0,0.00010675,2]
[421297810,1777390232199,-369.0,0.00010686,2]
[421297811,1777390232210,-369.0,0.00010688,2]
[421297812,1777390232221,-369.0,0.00010692,2]
[421297813,1777390232232,-369.0,0.00010698,2]
[421297814,1777390232244,-369.0,0.00010713,2]
[421297815,1777390232255,-369.0,0.00010714,2]
[421297816,1777390232266,-369.0,0.00010716,2]
[421297817,1777390232276,-369.0,0.00010721,2]
[421297818,1777390232288,-150.0,0.00010725,2]
[421297819,1777390232298,-190.0,0.00010725,2]
[421297820,1777390232309,-326.97308205,0.0001073,2]
[421297821,1777390232321,-369.0,0.00010731,2]
[421297822,1777390232332,-369.0,0.00010733,2]
[421297823,1777390232343,-369.0,0.00010736,2]
[421297824,1777390232355,-369.0,0.00010739,2]
[421297825,1777390232366,-2862.70295116,0.00010741,2]
[421297826,1777390232377,-369.0,0.00010744,2]
[421297827,1777390232388,-369.0,0.00010744,2]
[421297828,1777390232399,-369.0,0.00010751,2]
[421297829,1777390232410,-369.0,0.00010759,2]
[421297830,1777390232427,-369.0,0.00010776,2]
[421297831,1777390232440,-369.0,0.00010776,2]
[421297832,1777390232453,-369.0,0.00010782,2]
[421297833,1777390232465,-369.0,0.00010782,2]
[421297834,1777390232478,-369.0,0.00010783,2]
[421297835,1777390232489,-369.0,0.00010783,2]
[421297836,1777390232502,-369.0,0.00010788,2]
[421297837,1777390232514,-369.0,0.00010792,2]
[421297838,1777390232526,-369.0,0.00010797,2]
[421297839,1777390232539,-109330.70391285,0.00010799,2]
[421297840,1777390232555,-52624.42393438,0.00010799,2]
[421297841,1777390232570,-178692.4226353,0.00010799,2]
[421297842,1777390232584,-496.2484482,0.00010799,2]
[421297843,1777390232599,-479.0,0.00010799,2]
[421297847,1777390238763,-8393.22571905,0.00010799,2]
[421297852,1777390239788,-53273.93281645,0.00010799,2]
[421297866,1777390242852,-2067.50764927,0.00010799,2]
[421297867,1777390242907,-6405.64218561,0.00010799,2]
[421297868,1777390243017,-1549.74086212,0.00010799,2]
[421297875,1777390246134,-621.38668591,0.00010326,2]
[421297876,1777390246145,-2347.35,0.00010326,2]
[421297877,1777390246244,-1269.568875,0.00010326,2]
[421297878,1777390246257,-1796.69443909,0.00010326,2]
[421297879,1777390246267,-548.47556091,0.00010799,2]
[421297880,1777390246279,-7702.32417744,0.00010799,2]
[421297881,1777390246303,-6416.97769842,0.00010799,2]
[421297882,1777390246313,-1000.0,0.000108,2]
[421297883,1777390246322,-313.0,0.000108,2]
[421297884,1777390246332,-307.0,0.000108,2]
[421297885,1777390246342,-150.0,0.000108,2]
[421297886,1777390246352,-369.0,0.00010801,2]
[421297887,1777390246361,-369.0,0.00010813,2]
[421297888,1777390246371,-369.0,0.00010814,2]
[421297889,1777390246381,-369.0,0.00010819,2]
[421297890,1777390246392,-369.0,0.00010826,2]
[421297891,1777390246401,-369.0,0.00010862,2]
[421297892,1777390246411,-369.0,0.0001089,2]
[421297894,1777390246421,-4221.1577,0.00010899,2]
[421297896,1777390246430,-1009.9228,0.00010899,2]
[421297897,1777390246440,-2500.0,0.00010899,2]
[421297898,1777390246449,-1000.0,0.000109,3]
[421297899,1777390246459,-2351.0,0.00010939,2]
[421297900,1777390246469,-3150.0,0.00010959,2]
[421297901,1777390246479,-721.12765535,0.00010992,2]
[421297902,1777390246488,-1428.38747117,0.00010992,2]
[421297903,1777390246498,-500.0,0.00010998,2]
[421297904,1777390246507,-500.0,0.00010998,2]
[421297905,1777390246517,-500.0,0.00010998,2]
[421297906,1777390246526,-500.0,0.00010998,2]
[421297907,1777390246536,-500.0,0.00010998,2]
[421297908,1777390246545,-342.57318102,0.00010998,2]
[421297909,1777390246554,-500.0,0.00010998,2]
[421297910,1777390246563,-500.0,0.00010998,2]
[421297911,1777390246572,-500.0,0.00010998,2]
[421297912,1777390246582,-500.0,0.00010998,2]
[421297913,1777390246591,-500.0,0.00010998,2]
[421297914,1777390246600,-500.0,0.00010998,2]
[421297915,1777390246609,-500.0,0.00010998,2]
[421297916,1777390246618,-500.0,0.00010998,2]
[421297917,1777390246628,-500.0,0.00010998,2]
[421297918,1777390246637,-397.53180475,0.00010998,2]
[421297919,1777390246646,-321.9479783,0.00010998,2]
[421297920,1777390246656,-292.23,0.00010998,2]
[421297921,1777390246666,-500.0,0.00010998,2]
[421297922,1777390246675,-500.0,0.00010998,2]
[421297923,1777390246684,-50000.0,0.00011,2]
[421297924,1777390246695,-1061.067824,0.00011071,2]
[421297925,1777390246704,-295.9593366,0.00011071,2]
[421297926,1777390246714,-1467.7705407,0.00011071,2]
[421297927,1777390246723,-500.0,0.00011098,2]
[421297928,1777390246733,-18913.61145416,0.00011099,2]
[421297929,1777390246743,-18913.61145414,0.00011099,2]
[421297931,1777390246753,-8486.39238978,0.00011099,2]
[421297933,1777390246763,-8486.39238969,0.00011099,2]
[421297935,1777390246772,-164.0,0.00011099,3]
[421297937,1777390246782,-163.0,0.00011099,3]
[421297939,1777390246792,-156.0,0.00011099,3]
[421297940,1777390246801,-172.0,0.00011099,3]
[421297941,1777390246811,-2000.0,0.000111,4]
[421297942,1777390246820,-4212.91051926,0.00011109,2]
[421297943,1777390246830,-8486.39238969,0.00011121,2]
[421297944,1777390246839,-18913.61145414,0.00011121,2]
[421297945,1777390246849,-2000.0,0.0001114,2]
[421297946,1777390246858,-5000.0,0.00011199,2]
[421297947,1777390246868,-3100.0,0.000112,4]
[421297949,1777390246878,-1718.64699554,0.00011217,2]
[421297950,1777390246887,-8486.39238969,0.00011233,2]
[421297951,1777390246897,-18913.61145414,0.00011233,2]
[421297952,1777390246906,-292.23,0.00011272,2]
[421297953,1777390246916,-381.1434303,0.00011286,2]
[421297954,1777390246925,-1000.0,0.00011287,2]
[421297955,1777390246934,-1082.5866106,0.00011287,2]
[421297956,1777390246943,-1000.0,0.00011288,2]
[421297957,1777390246953,-1000.0,0.00011291,2]
[421297958,1777390246962,-1000.0,0.00011293,2]
[421297959,1777390246971,-1000.0,0.00011293,2]
[421297960,1777390246980,-1000.0,0.00011294,2]
[421297961,1777390246990,-1000.0,0.00011297,2]
[421297962,1777390247000,-4100.0,0.000113,4]
[421297963,1777390247010,-1000.0,0.00011302,2]
[421297964,1777390247019,-1000.0,0.00011302,2]
[421297965,1777390247028,-1000.0,0.00011304,2]
[421297966,1777390247038,-1000.0,0.00011305,2]
[421297967,1777390247048,-376.0,0.00011314,2]
[421297968,1777390247057,-1000.0,0.00011314,2]
[421297969,1777390247067,-2576.43736329,0.00011317,2]
[421297970,1777390247076,-1000.0,0.00011323,2]
[421297971,1777390247086,-1000.0,0.00011326,2]
[421297972,1777390247095,-1000.0,0.00011328,2]
[421297973,1777390247104,-1000.0,0.00011328,2]
[421297974,1777390247117,-1000.0,0.00011329,2]
[421297975,1777390247126,-1000.0,0.00011337,2]
[421297976,1777390247136,-304.72209307,0.00011338,2]
[421297977,1777390247145,-1000.0,0.00011339,2]
[421297978,1777390247155,-1000.0,0.00011342,2]
[421297979,1777390247164,-8486.39238969,0.00011344,2]
[421297980,1777390247174,-18913.61145414,0.00011344,2]
[421297981,1777390247183,-1000.0,0.00011344,2]
[421297982,1777390247192,-1000.0,0.00011347,2]
[421297983,1777390247202,-1082.5866106,0.0001135,2]
[421297984,1777390247211,-434.53407716,0.00011356,2]
[421297985,1777390247220,-1000.0,0.00011356,2]
[421297986,1777390247230,-1000.0,0.00011361,2]
[421297987,1777390247239,-1000.0,0.00011364,2]
[421297988,1777390247249,-1000.0,0.00011365,2]
[421297989,1777390247258,-1000.0,0.00011365,2]
[421297990,1777390247267,-1000.0,0.00011376,2]